[Event "Early-Titled-Tuesday-Blitz-April-23-2024"]
[Site "Chess.com"]
[Date "2024.04.23"]
[Round "3"]
[White "klifus"]
[Black "Nikita_Klepikov"]
[Result "1/2-1/2"]
[WhiteElo "2084"]
[BlackElo "2356"]
[TimeControl "180+1"]
[EndTime "8:29:30 PDT"]
[Termination "Game drawn - insufficient material"]

1. Nf3 {[%clk 0:03:00.9]} 1... Nf6 {[%clk 0:02:59.6]} 2. g3 {[%clk 0:02:59.6]}
2... d6 {[%clk 0:02:59.7]} 3. Bg2 {[%clk 0:02:58.1]} 3... e5 {[%clk 0:02:59.9]}
4. O-O {[%clk 0:02:56]} 4... g6 {[%clk 0:02:59.8]} 5. d4 {[%clk 0:02:54.1]} 5...
e4 {[%clk 0:02:52]} 6. Ne1 {[%clk 0:02:51.9]} 6... d5 {[%clk 0:02:51.4]} 7. c4
{[%clk 0:02:50.4]} 7... c6 {[%clk 0:02:51.8]} 8. cxd5 {[%clk 0:02:49.1]} 8...
cxd5 {[%clk 0:02:52.7]} 9. Nc3 {[%clk 0:02:48.5]} 9... Bg7 {[%clk 0:02:50.8]}
10. Qb3 {[%clk 0:02:42.5]} 10... O-O {[%clk 0:02:48.2]} 11. Bg5 {[%clk
0:02:39.9]} 11... Nc6 {[%clk 0:02:22.2]} 12. Bxf6 {[%clk 0:02:21.9]} 12... Bxf6
{[%clk 0:02:13.4]} 13. Nxd5 {[%clk 0:02:19.6]} 13... Nxd4 {[%clk 0:01:31.5]} 14.
Nxf6+ {[%clk 0:02:17.9]} 14... Qxf6 {[%clk 0:01:31.8]} 15. Qe3 {[%clk
0:01:42.9]} 15... Bf5 {[%clk 0:01:23.2]} 16. h3 {[%clk 0:01:35.8]} 16... h5
{[%clk 0:01:22.5]} 17. Rd1 {[%clk 0:01:19.5]} 17... Rad8 {[%clk 0:01:06.3]} 18.
Rd2 {[%clk 0:01:17.6]} 18... Rfe8 {[%clk 0:00:49.9]} 19. Nc2 {[%clk 0:01:16]}
19... Nxc2 {[%clk 0:00:43]} 20. Rxc2 {[%clk 0:01:15.4]} 20... Qe6 {[%clk
0:00:40.3]} 21. b3 {[%clk 0:01:04.3]} 21... Bxh3 {[%clk 0:00:22.3]} 22. Rc7
{[%clk 0:01:03.2]} 22... Bxg2 {[%clk 0:00:20.7]} 23. Kxg2 {[%clk 0:01:02.8]}
23... Rd7 {[%clk 0:00:19.8]} 24. Rfc1 {[%clk 0:01:01.4]} 24... Rxc7 {[%clk
0:00:15.7]} 25. Rxc7 {[%clk 0:00:59.9]} 25... h4 {[%clk 0:00:15.3]} 26. Rxb7
{[%clk 0:00:54]} 26... h3+ {[%clk 0:00:14]} 27. Kh2 {[%clk 0:00:52.9]} 27... a6
{[%clk 0:00:14.3]} 28. Qf4 {[%clk 0:00:44.8]} 28... e3 {[%clk 0:00:13.6]} 29.
fxe3 {[%clk 0:00:42.4]} 29... Rc8 {[%clk 0:00:09.1]} 30. e4 {[%clk 0:00:35.5]}
30... Rc2 {[%clk 0:00:06.8]} 31. Qf3 {[%clk 0:00:33]} 31... g5 {[%clk
0:00:04.1]} 32. g4 {[%clk 0:00:31]} 32... Qe5+ {[%clk 0:00:03.5]} 33. Qg3 {[%clk
0:00:22.7]} 33... Rxe2+ {[%clk 0:00:02.4]} 34. Kxh3 {[%clk 0:00:22.3]} 34...
Qxg3+ {[%clk 0:00:02.6]} 35. Kxg3 {[%clk 0:00:22.3]} 35... Rxe4 {[%clk
0:00:03.5]} 36. Kf3 {[%clk 0:00:22.3]} 36... Re6 {[%clk 0:00:02.1]} 37. a4
{[%clk 0:00:19]} 37... Kg7 {[%clk 0:00:03]} 38. b4 {[%clk 0:00:18.1]} 38... Kf6
{[%clk 0:00:03.6]} 39. b5 {[%clk 0:00:18.1]} 39... axb5 {[%clk 0:00:04.5]} 40.
axb5 {[%clk 0:00:18]} 40... Rd6 {[%clk 0:00:03.4]} 41. Rc7 {[%clk 0:00:17.1]}
41... Ke6 {[%clk 0:00:03.8]} 42. Ke4 {[%clk 0:00:14.4]} 42... Rb6 {[%clk
0:00:04.3]} 43. Rc6+ {[%clk 0:00:14.1]} 43... Rxc6 {[%clk 0:00:04.4]} 44. bxc6
{[%clk 0:00:14.3]} 44... Kd6 {[%clk 0:00:04.9]} 45. Kf5 {[%clk 0:00:14.2]} 45...
Kxc6 {[%clk 0:00:05.6]} 46. Kxg5 {[%clk 0:00:13.9]} 46... Kd7 {[%clk 0:00:06.5]}
47. Kf6 {[%clk 0:00:14]} 47... Ke8 {[%clk 0:00:07.4]} 48. g5 {[%clk 0:00:12.4]}
48... Kf8 {[%clk 0:00:07.7]} 49. g6 {[%clk 0:00:12.1]} 49... fxg6 {[%clk
0:00:08.1]} 50. Kxg6 {[%clk 0:00:12.3]} 1/2-1/2

[Event "Early-Titled-Tuesday-Blitz-April-23-2024"]
[Site "Chess.com"]
[Date "2024.04.23"]
[Round "3"]
[White "DamianoLew95"]
[Black "jefferyx"]
[Result "0-1"]
[WhiteElo "2802"]
[BlackElo "3110"]
[TimeControl "180+1"]
[EndTime "8:29:31 PDT"]
[Termination "jefferyx won on time"]

1. e4 {[%clk 0:03:00.9]} 1... e6 {[%clk 0:02:58]} 2. d4 {[%clk 0:02:56.2]} 2...
d5 {[%clk 0:02:58.4]} 3. exd5 {[%clk 0:02:55.6]} 3... exd5 {[%clk 0:02:58.7]} 4.
Bd3 {[%clk 0:02:55.9]} 4... c5 {[%clk 0:02:51.3]} 5. dxc5 {[%clk 0:02:56.8]}
5... Bxc5 {[%clk 0:02:51.3]} 6. Nf3 {[%clk 0:02:56.3]} 6... Nf6 {[%clk
0:02:48.2]} 7. O-O {[%clk 0:02:54.4]} 7... O-O {[%clk 0:02:48.5]} 8. Nc3 {[%clk
0:02:54.5]} 8... Bg4 {[%clk 0:02:44.3]} 9. Bg5 {[%clk 0:02:53.5]} 9... h6 {[%clk
0:02:37.5]} 10. Bxf6 {[%clk 0:02:50.4]} 10... Qxf6 {[%clk 0:02:38.3]} 11. Nxd5
{[%clk 0:02:47.8]} 11... Qxb2 {[%clk 0:02:34.4]} 12. Nc7 {[%clk 0:02:40.2]}
12... Nc6 {[%clk 0:02:27.4]} 13. Nxa8 {[%clk 0:02:39.5]} 13... Rxa8 {[%clk
0:02:28.3]} 14. Qe2 {[%clk 0:02:22.7]} 14... g6 {[%clk 0:01:28.6]} 15. Bxg6
{[%clk 0:01:45.6]} 15... Qg7 {[%clk 0:01:27.9]} 16. Be4 {[%clk 0:01:17]} 16...
Re8 {[%clk 0:01:27.3]} 17. Kh1 {[%clk 0:00:40.8]} 17... Bf5 {[%clk 0:00:43.8]}
18. Qc4 {[%clk 0:00:28.9]} 18... Bxe4 {[%clk 0:00:34.5]} 19. Qxc5 {[%clk
0:00:27.4]} 19... Ne5 {[%clk 0:00:33]} 20. Qc3 {[%clk 0:00:19.3]} 20... Nxf3
{[%clk 0:00:22.6]} 21. Qxg7+ {[%clk 0:00:20.2]} 21... Kxg7 {[%clk 0:00:23.2]}
22. gxf3 {[%clk 0:00:20.3]} 22... Bxf3+ {[%clk 0:00:24.1]} 23. Kg1 {[%clk
0:00:20.7]} 23... Kf6 {[%clk 0:00:22.5]} 24. Rfe1 {[%clk 0:00:17.2]} 24... Rg8+
{[%clk 0:00:22.9]} 25. Kf1 {[%clk 0:00:17.8]} 25... Bc6 {[%clk 0:00:22.6]} 26.
Ke2 {[%clk 0:00:17]} 26... Rg2 {[%clk 0:00:21.5]} 27. Rh1 {[%clk 0:00:16.3]}
27... Rg4 {[%clk 0:00:21]} 28. Rhg1 {[%clk 0:00:16.1]} 28... Rh4 {[%clk
0:00:20.9]} 29. Rg3 {[%clk 0:00:11.7]} 29... Rxh2 {[%clk 0:00:21]} 30. a4 {[%clk
0:00:11.6]} 30... Rh5 {[%clk 0:00:21.3]} 31. Raa3 {[%clk 0:00:10.6]} 31... a6
{[%clk 0:00:21.1]} 32. a5 {[%clk 0:00:10.4]} 32... Rf5 {[%clk 0:00:20.5]} 33.
Rh3 {[%clk 0:00:09.7]} 33... h5 {[%clk 0:00:20.9]} 34. Rh4 {[%clk 0:00:08.8]}
34... Kg5 {[%clk 0:00:21.2]} 35. Rah3 {[%clk 0:00:08.7]} 35... Kh6 {[%clk
0:00:18.9]} 36. Ke3 {[%clk 0:00:07.4]} 36... Rxa5 {[%clk 0:00:19]} 37. Kd4
{[%clk 0:00:07]} 37... Ra4+ {[%clk 0:00:18.9]} 38. Ke5 {[%clk 0:00:07]} 38...
Rxh4 {[%clk 0:00:19.2]} 39. Rxh4 {[%clk 0:00:07.9]} 39... Kg5 {[%clk 0:00:18.7]}
40. Rf4 {[%clk 0:00:07.7]} 40... Kg6 {[%clk 0:00:12.5]} 41. Rf6+ {[%clk
0:00:07.6]} 41... Kg7 {[%clk 0:00:13.1]} 42. Kf5 {[%clk 0:00:07.6]} 42... a5
{[%clk 0:00:12.7]} 43. Kg5 {[%clk 0:00:07.2]} 43... a4 {[%clk 0:00:13.3]} 44.
Rf4 {[%clk 0:00:03.1]} 44... a3 {[%clk 0:00:13.2]} 45. Rd4 {[%clk 0:00:03.4]}
45... b5 {[%clk 0:00:10.3]} 46. c3 {[%clk 0:00:03.3]} 46... f6+ {[%clk 0:00:05]}
47. Kxh5 {[%clk 0:00:02.7]} 47... a2 {[%clk 0:00:05.2]} 0-1

[Event "Early-Titled-Tuesday-Blitz-April-23-2024"]
[Site "Chess.com"]
[Date "2024.04.23"]
[Round "3"]
[White "valeriocarnicelli"]
[Black "Seochesspie"]
[Result "0-1"]
[WhiteElo "2545"]
[BlackElo "2901"]
[TimeControl "180+1"]
[EndTime "8:29:33 PDT"]
[Termination "Seochesspie won by resignation"]

1. e4 {[%clk 0:03:00.9]} 1... c6 {[%clk 0:03:00.4]} 2. Nc3 {[%clk 0:02:59.9]}
2... d5 {[%clk 0:03:01.3]} 3. Nf3 {[%clk 0:02:59.4]} 3... Nf6 {[%clk 0:02:59.5]}
4. e5 {[%clk 0:02:52.2]} 4... Ne4 {[%clk 0:02:59.3]} 5. Ne2 {[%clk 0:02:51.9]}
5... Qb6 {[%clk 0:02:59.1]} 6. d4 {[%clk 0:02:51.4]} 6... c5 {[%clk 0:02:49.9]}
7. Ng3 {[%clk 0:02:51.2]} 7... Nc6 {[%clk 0:02:43]} 8. Bd3 {[%clk 0:02:45.1]}
8... Nxg3 {[%clk 0:02:37.7]} 9. fxg3 {[%clk 0:02:46]} 9... Bg4 {[%clk
0:02:28.4]} 10. dxc5 {[%clk 0:02:18.1]} 10... Qxc5 {[%clk 0:02:28]} 11. Qe2
{[%clk 0:02:08]} 11... e6 {[%clk 0:02:23.5]} 12. Be3 {[%clk 0:01:58.2]} 12... d4
{[%clk 0:02:04.8]} 13. Bf4 {[%clk 0:01:55.5]} 13... Be7 {[%clk 0:01:59.5]} 14.
O-O {[%clk 0:01:45]} 14... O-O {[%clk 0:01:50.2]} 15. h3 {[%clk 0:01:36.8]}
15... Bf5 {[%clk 0:01:46.3]} 16. Bxf5 {[%clk 0:01:16.2]} 16... exf5 {[%clk
0:01:46.2]} 17. Kh1 {[%clk 0:01:09.4]} 17... Nd8 {[%clk 0:01:36.1]} 18. Ne1
{[%clk 0:01:07.1]} 18... Ne6 {[%clk 0:01:35.8]} 19. Nd3 {[%clk 0:01:07.2]} 19...
Qb5 {[%clk 0:01:34.3]} 20. a4 {[%clk 0:01:06.3]} 20... Qc6 {[%clk 0:01:31.8]}
21. Rf2 {[%clk 0:00:52.8]} 21... Rac8 {[%clk 0:01:29.8]} 22. Bc1 {[%clk
0:00:49.1]} 22... Qe4 {[%clk 0:01:28.4]} 23. a5 {[%clk 0:00:41.8]} 23... a6
{[%clk 0:01:26.4]} 24. Ra4 {[%clk 0:00:40.1]} 24... Rc6 {[%clk 0:01:20]} 25. Ne1
{[%clk 0:00:35.7]} 25... Rfc8 {[%clk 0:01:15.4]} 26. Bd2 {[%clk 0:00:26.3]}
26... g6 {[%clk 0:01:08.5]} 27. g4 {[%clk 0:00:17.3]} 27... Qxe2 {[%clk
0:00:54.9]} 28. Rxe2 {[%clk 0:00:18.2]} 28... fxg4 {[%clk 0:00:55.4]} 29. hxg4
{[%clk 0:00:18.3]} 29... Rc5 {[%clk 0:00:52.7]} 30. Bb4 {[%clk 0:00:15.6]} 30...
R5c7 {[%clk 0:00:52.8]} 31. Bxe7 {[%clk 0:00:15.3]} 31... Rxe7 {[%clk
0:00:53.1]} 32. Nd3 {[%clk 0:00:15]} 32... Rd7 {[%clk 0:00:49.4]} 33. Rb4 {[%clk
0:00:14.4]} 33... Kg7 {[%clk 0:00:45.6]} 34. Rb6 {[%clk 0:00:14.2]} 34... Rdc7
{[%clk 0:00:45.4]} 35. Ne1 {[%clk 0:00:13]} 35... Nc5 {[%clk 0:00:37.2]} 36. b4
{[%clk 0:00:11.1]} 36... Ne6 {[%clk 0:00:36.1]} 37. Rd6 {[%clk 0:00:10.7]} 37...
Rc4 {[%clk 0:00:34.2]} 38. Rb6 {[%clk 0:00:10.4]} 38... R8c7 {[%clk 0:00:34.4]}
39. Rf2 {[%clk 0:00:10.3]} 39... Re7 {[%clk 0:00:31.9]} 40. Kg1 {[%clk
0:00:09.4]} 40... Nd8 {[%clk 0:00:30.4]} 41. Rd6 {[%clk 0:00:09.1]} 41... Nc6
{[%clk 0:00:29.6]} 42. e6 {[%clk 0:00:09.1]} 42... fxe6 {[%clk 0:00:28.6]} 43.
Kf1 {[%clk 0:00:06.8]} 43... Nxb4 {[%clk 0:00:27.2]} 44. Ke2 {[%clk 0:00:05.9]}
44... e5 {[%clk 0:00:26.5]} 45. Kd2 {[%clk 0:00:05.8]} 45... e4 {[%clk
0:00:26.4]} 46. Kd1 {[%clk 0:00:06.2]} 46... Nc6 {[%clk 0:00:25.2]} 47. Rf4
{[%clk 0:00:05.1]} 47... Nxa5 {[%clk 0:00:22.5]} 48. g5 {[%clk 0:00:05.2]} 48...
Nc6 {[%clk 0:00:20.7]} 49. g4 {[%clk 0:00:04.4]} 49... Rc5 {[%clk 0:00:20.8]}
50. Ng2 {[%clk 0:00:02.6]} 50... Rxg5 {[%clk 0:00:21]} 51. Rdf6 {[%clk
0:00:01.9]} 51... Rge5 {[%clk 0:00:20.4]} 0-1

[Event "Early-Titled-Tuesday-Blitz-April-23-2024"]
[Site "Chess.com"]
[Date "2024.04.23"]
[Round "3"]
[White "briesmas"]
[Black "Statham_01"]
[Result "0-1"]
[WhiteElo "2206"]
[BlackElo "2576"]
[TimeControl "180+1"]
[EndTime "8:29:33 PDT"]
[Termination "Statham_01 won on time"]

1. e4 {[%clk 0:03:00.3]} 1... c5 {[%clk 0:03:00.1]} 2. Nf3 {[%clk 0:02:59.8]}
2... d6 {[%clk 0:03:00.5]} 3. d4 {[%clk 0:02:59.3]} 3... cxd4 {[%clk 0:03:01.4]}
4. Nxd4 {[%clk 0:02:59.6]} 4... Nf6 {[%clk 0:03:02.1]} 5. Nc3 {[%clk 0:02:59.2]}
5... g6 {[%clk 0:03:02.7]} 6. Be3 {[%clk 0:02:56.5]} 6... Bg7 {[%clk 0:03:03.1]}
7. f3 {[%clk 0:02:56.6]} 7... O-O {[%clk 0:03:03.4]} 8. Qd2 {[%clk 0:02:56.7]}
8... Nc6 {[%clk 0:03:04]} 9. O-O-O {[%clk 0:02:57]} 9... d5 {[%clk 0:03:02.1]}
10. exd5 {[%clk 0:02:57.2]} 10... Nxd5 {[%clk 0:03:01.6]} 11. Nxc6 {[%clk
0:02:57.4]} 11... bxc6 {[%clk 0:03:02.5]} 12. Nxd5 {[%clk 0:02:57.7]} 12... cxd5
{[%clk 0:03:00.8]} 13. Bh6 {[%clk 0:02:57.9]} 13... Bf6 {[%clk 0:02:31.1]} 14.
Bxf8 {[%clk 0:02:53.6]} 14... Qxf8 {[%clk 0:02:31.9]} 15. h4 {[%clk 0:02:35.4]}
15... Rb8 {[%clk 0:02:31.6]} 16. c3 {[%clk 0:02:30.4]} 16... d4 {[%clk
0:02:18.4]} 17. cxd4 {[%clk 0:01:52.2]} 17... Bf5 {[%clk 0:02:18.1]} 18. Bc4
{[%clk 0:01:51.1]} 18... Rc8 {[%clk 0:02:01.1]} 19. b3 {[%clk 0:01:21.3]} 19...
e5 {[%clk 0:02:01]} 20. g4 {[%clk 0:01:10.3]} 20... Be6 {[%clk 0:01:46.7]} 21.
d5 {[%clk 0:00:55.6]} 21... Bd7 {[%clk 0:01:46.9]} 22. Kb1 {[%clk 0:00:37]}
22... e4 {[%clk 0:01:43.8]} 23. fxe4 {[%clk 0:00:34.6]} 23... Bxg4 {[%clk
0:01:41.2]} 24. Rdf1 {[%clk 0:00:27.8]} 24... Qe7 {[%clk 0:01:34.7]} 25. d6
{[%clk 0:00:24.3]} 25... Qxe4+ {[%clk 0:01:30]} 26. Qd3 {[%clk 0:00:13.4]} 26...
Qe5 {[%clk 0:01:30]} 27. Rxf6 {[%clk 0:00:13.2]} 27... Qxf6 {[%clk 0:01:30.9]}
28. Rf1 {[%clk 0:00:13.2]} 28... Bf5 {[%clk 0:01:30.6]} 29. Rxf5 {[%clk
0:00:11.8]} 29... Qxf5 {[%clk 0:01:31.5]} 30. Qxf5 {[%clk 0:00:05.8]} 30... gxf5
{[%clk 0:01:32.4]} 31. d7 {[%clk 0:00:03]} 31... Rd8 {[%clk 0:01:32.5]} 32. Bb5
{[%clk 0:00:03.4]} 32... a6 {[%clk 0:01:32.1]} 33. Bc6 {[%clk 0:00:02.4]} 33...
Kg7 {[%clk 0:01:31]} 34. Kc2 {[%clk 0:00:03]} 34... Kf6 {[%clk 0:01:31.4]} 35.
b4 {[%clk 0:00:02.9]} 35... Ke7 {[%clk 0:01:28]} 36. a4 {[%clk 0:00:02.9]} 36...
f4 {[%clk 0:01:25.9]} 37. Kd3 {[%clk 0:00:03]} 37... f5 {[%clk 0:01:24.9]} 38.
Ke2 {[%clk 0:00:02.9]} 38... Kd6 {[%clk 0:01:25.3]} 39. b5 {[%clk 0:00:02.7]}
39... axb5 {[%clk 0:01:26.1]} 40. Bxb5 {[%clk 0:00:02.2]} 40... Ke5 {[%clk
0:01:22]} 41. Kf3 {[%clk 0:00:02.5]} 41... Rg8 {[%clk 0:01:14.6]} 42. a5 {[%clk
0:00:02]} 42... Rg3+ {[%clk 0:01:08.5]} 43. Kf2 {[%clk 0:00:02.1]} 43... Rg8
{[%clk 0:01:09.4]} 44. a6 {[%clk 0:00:01.9]} 44... Kd6 {[%clk 0:01:04.3]} 45.
Kf3 {[%clk 0:00:02]} 45... Kc5 {[%clk 0:01:04.9]} 46. Ba4 {[%clk 0:00:01.7]}
46... Kb6 {[%clk 0:00:50.9]} 47. Kxf4 {[%clk 0:00:02.3]} 47... Kc7 {[%clk
0:00:30.2]} 48. Kxf5 {[%clk 0:00:02.7]} 48... Ra8 {[%clk 0:00:30.6]} 49. Bb5
{[%clk 0:00:02.6]} 49... Rb8 {[%clk 0:00:26.6]} 50. Ba4 {[%clk 0:00:01.6]} 50...
Rb4 {[%clk 0:00:24.6]} 0-1

[Event "Early-Titled-Tuesday-Blitz-April-23-2024"]
[Site "Chess.com"]
[Date "2024.04.23"]
[Round "3"]
[White "SahibSinghKnight"]
[Black "praveenb2002"]
[Result "0-1"]
[WhiteElo "2630"]
[BlackElo "2899"]
[TimeControl "180+1"]
[EndTime "8:29:34 PDT"]
[Termination "praveenb2002 won by resignation"]

1. e4 {[%clk 0:03:00.9]} 1... c6 {[%clk 0:02:58.1]} 2. d4 {[%clk 0:03:00.1]}
2... d5 {[%clk 0:02:59]} 3. Nc3 {[%clk 0:03:00.3]} 3... dxe4 {[%clk 0:02:56.3]}
4. Nxe4 {[%clk 0:03:01.2]} 4... Nf6 {[%clk 0:02:56.6]} 5. Nxf6+ {[%clk
0:03:01.2]} 5... exf6 {[%clk 0:02:57]} 6. c3 {[%clk 0:03:01.9]} 6... Bd6 {[%clk
0:02:54.7]} 7. Bd3 {[%clk 0:03:02.5]} 7... O-O {[%clk 0:02:54.1]} 8. Qc2 {[%clk
0:03:03.4]} 8... Re8+ {[%clk 0:02:50.8]} 9. Ne2 {[%clk 0:03:03.9]} 9... h5
{[%clk 0:02:51.4]} 10. O-O {[%clk 0:03:02]} 10... h4 {[%clk 0:02:45]} 11. h3
{[%clk 0:03:01.9]} 11... Nd7 {[%clk 0:02:44.3]} 12. c4 {[%clk 0:03:01.5]} 12...
Nf8 {[%clk 0:02:43.8]} 13. Be3 {[%clk 0:03:01.6]} 13... Bb8 {[%clk 0:02:28.5]}
14. Rad1 {[%clk 0:02:57.6]} 14... Qc7 {[%clk 0:02:22.5]} 15. Bf4 {[%clk
0:02:25.1]} 15... Rxe2 {[%clk 0:02:22.4]} 16. Bxc7 {[%clk 0:02:25.2]} 16... Rxc2
{[%clk 0:02:22.9]} 17. Bxb8 {[%clk 0:01:44.7]} 17... Rxb2 {[%clk 0:02:23]} 18.
Bd6 {[%clk 0:01:44.5]} 18... Rxa2 {[%clk 0:02:21.4]} 19. Rfe1 {[%clk 0:01:39.8]}
19... Be6 {[%clk 0:02:16.5]} 20. Bb1 {[%clk 0:01:25.7]} 20... Rb2 {[%clk
0:01:37]} 21. d5 {[%clk 0:01:23.9]} 21... cxd5 {[%clk 0:01:36.5]} 22. cxd5
{[%clk 0:01:24.8]} 22... Bd7 {[%clk 0:01:30]} 23. Rc1 {[%clk 0:01:12.9]} 23...
Rd2 {[%clk 0:01:25.2]} 24. Be4 {[%clk 0:01:05.7]} 24... Rc8 {[%clk 0:01:09.9]}
25. Ra1 {[%clk 0:00:58.7]} 25... a6 {[%clk 0:01:06.8]} 26. Reb1 {[%clk
0:00:53.4]} 26... Bb5 {[%clk 0:01:02.9]} 27. Be7 {[%clk 0:00:39.8]} 27... Ng6
{[%clk 0:00:50.1]} 28. Bb4 {[%clk 0:00:30.9]} 28... Rd4 {[%clk 0:00:44.9]} 29.
Bf3 {[%clk 0:00:30.8]} 29... Nf4 {[%clk 0:00:38.9]} 30. d6 {[%clk 0:00:24.7]}
30... Bc6 {[%clk 0:00:31.3]} 31. Bc5 {[%clk 0:00:12.1]} 31... Rd3 {[%clk
0:00:26.7]} 32. Be3 {[%clk 0:00:09.9]} 32... Nd5 {[%clk 0:00:19.2]} 33. Rd1
{[%clk 0:00:09]} 33... Rxd1+ {[%clk 0:00:18.2]} 34. Rxd1 {[%clk 0:00:09.9]}
34... Nxe3 {[%clk 0:00:18.2]} 35. fxe3 {[%clk 0:00:09.7]} 35... Bxf3 {[%clk
0:00:18.4]} 36. gxf3 {[%clk 0:00:09.8]} 36... Rd8 {[%clk 0:00:18.8]} 37. e4
{[%clk 0:00:06.4]} 37... g5 {[%clk 0:00:18.9]} 38. Kf2 {[%clk 0:00:06.6]} 38...
Kf8 {[%clk 0:00:18.7]} 39. Rd5 {[%clk 0:00:06.6]} 39... Ke8 {[%clk 0:00:18.4]}
40. Ke3 {[%clk 0:00:07.2]} 40... Kd7 {[%clk 0:00:18.7]} 41. f4 {[%clk
0:00:06.7]} 41... gxf4+ {[%clk 0:00:18.6]} 42. Kxf4 {[%clk 0:00:07.6]} 42... Ke6
{[%clk 0:00:18.8]} 43. Rh5 {[%clk 0:00:05.1]} 43... Rxd6 {[%clk 0:00:18.8]} 44.
Rxh4 {[%clk 0:00:05.8]} 44... a5 {[%clk 0:00:18.8]} 45. Rh8 {[%clk 0:00:06.4]}
45... Ra6 {[%clk 0:00:18.9]} 46. Rc8 {[%clk 0:00:01.8]} 46... a4 {[%clk
0:00:18.8]} 47. Rc2 {[%clk 0:00:02.7]} 47... a3 {[%clk 0:00:18.7]} 48. Ra2
{[%clk 0:00:03.4]} 48... b5 {[%clk 0:00:18.8]} 49. h4 {[%clk 0:00:02]} 49... b4
{[%clk 0:00:19.2]} 50. h5 {[%clk 0:00:02.9]} 50... b3 {[%clk 0:00:19.6]} 51. Rh2
{[%clk 0:00:03]} 51... a2 {[%clk 0:00:18.7]} 52. h6 {[%clk 0:00:03.9]} 52...
a1=Q {[%clk 0:00:19.1]} 53. h7 {[%clk 0:00:04.8]} 53... Qe5+ {[%clk 0:00:18.9]}
0-1

[Event "Early-Titled-Tuesday-Blitz-April-23-2024"]
[Site "Chess.com"]
[Date "2024.04.23"]
[Round "3"]
[White "ahmedkandiliii"]
[Black "Nemegejas"]
[Result "0-1"]
[WhiteElo "2526"]
[BlackElo "2811"]
[TimeControl "180+1"]
[EndTime "8:29:36 PDT"]
[Termination "Nemegejas won by checkmate"]

1. e4 {[%clk 0:03:00.9]} 1... c6 {[%clk 0:02:59.5]} 2. d4 {[%clk 0:03:00.3]}
2... d5 {[%clk 0:02:59.4]} 3. Nd2 {[%clk 0:03:00.9]} 3... dxe4 {[%clk
0:02:58.5]} 4. Nxe4 {[%clk 0:03:01.8]} 4... Nd7 {[%clk 0:02:55.1]} 5. Nf3 {[%clk
0:02:57]} 5... Ngf6 {[%clk 0:02:54.7]} 6. Nc3 {[%clk 0:02:54.7]} 6... e6 {[%clk
0:02:40.1]} 7. Bd3 {[%clk 0:02:53.4]} 7... c5 {[%clk 0:02:38.7]} 8. Bf4 {[%clk
0:02:44]} 8... cxd4 {[%clk 0:02:30.5]} 9. Nb5 {[%clk 0:02:38.3]} 9... Nd5 {[%clk
0:02:27.4]} 10. Bg3 {[%clk 0:02:32.4]} 10... Bb4+ {[%clk 0:02:03.5]} 11. Kf1
{[%clk 0:02:23.7]} 11... O-O {[%clk 0:02:00.1]} 12. Nbxd4 {[%clk 0:02:19.1]}
12... Bc5 {[%clk 0:01:38.1]} 13. c3 {[%clk 0:01:47.4]} 13... b6 {[%clk
0:01:30.9]} 14. h4 {[%clk 0:01:45.1]} 14... N7f6 {[%clk 0:01:27.1]} 15. Ng5
{[%clk 0:01:22]} 15... Bb7 {[%clk 0:00:59]} 16. Ndf3 {[%clk 0:00:36.7]} 16...
Ne7 {[%clk 0:00:37.7]} 17. Qc2 {[%clk 0:00:19.5]} 17... Nf5 {[%clk 0:00:29.5]}
18. Rd1 {[%clk 0:00:14.1]} 18... Qc8 {[%clk 0:00:24.8]} 19. Be5 {[%clk
0:00:11.8]} 19... Ng4 {[%clk 0:00:22.4]} 20. Bd4 {[%clk 0:00:08.1]} 20... Bxd4
{[%clk 0:00:21.4]} 21. Bxf5 {[%clk 0:00:06.5]} 21... exf5 {[%clk 0:00:16.4]} 22.
Nxd4 {[%clk 0:00:06.3]} 22... g6 {[%clk 0:00:08.5]} 23. h5 {[%clk 0:00:06.4]}
23... Nf6 {[%clk 0:00:02]} 24. hxg6 {[%clk 0:00:06.3]} 24... hxg6 {[%clk
0:00:02.9]} 25. Qd3 {[%clk 0:00:05.3]} 25... Ba6 {[%clk 0:00:02.6]} 26. Nb5
{[%clk 0:00:03.2]} 26... Rd8 {[%clk 0:00:02.7]} 27. Qh3 {[%clk 0:00:01.8]} 27...
Rxd1+ {[%clk 0:00:02.4]} 28. Ke2 {[%clk 0:00:02.6]} 28... Qc4+ {[%clk
0:00:02.1]} 29. Kxd1 {[%clk 0:00:02.8]} 29... Qg4+ {[%clk 0:00:02.8]} 30. Qxg4
{[%clk 0:00:02.8]} 30... Nxg4 {[%clk 0:00:03.7]} 31. f3 {[%clk 0:00:03.4]} 31...
Nf2+ {[%clk 0:00:03.6]} 32. Kc2 {[%clk 0:00:04.1]} 32... Nxh1 {[%clk 0:00:04.5]}
33. Nc7 {[%clk 0:00:04.8]} 33... Bb7 {[%clk 0:00:03.4]} 34. Nxa8 {[%clk
0:00:05.4]} 34... Bxa8 {[%clk 0:00:04.3]} 35. Nh3 {[%clk 0:00:04.7]} 35... Ng3
{[%clk 0:00:04.4]} 36. Nf4 {[%clk 0:00:05.3]} 36... Kf8 {[%clk 0:00:04.2]} 37.
Nd3 {[%clk 0:00:06]} 37... Ke7 {[%clk 0:00:04.6]} 38. Kd2 {[%clk 0:00:06.7]}
38... Kd6 {[%clk 0:00:05]} 39. Ke3 {[%clk 0:00:07.6]} 39... g5 {[%clk
0:00:04.9]} 40. f4 {[%clk 0:00:07]} 40... Bxg2 {[%clk 0:00:03.3]} 41. fxg5
{[%clk 0:00:06.7]} 41... Be4 {[%clk 0:00:03.9]} 42. Kf4 {[%clk 0:00:07.6]} 42...
Bxd3 {[%clk 0:00:03.5]} 43. Kf3 {[%clk 0:00:08.5]} 43... Nh5 {[%clk 0:00:02.9]}
44. g6 {[%clk 0:00:08.7]} 44... Be4+ {[%clk 0:00:03.8]} 45. Ke3 {[%clk
0:00:08.8]} 45... fxg6 {[%clk 0:00:04.7]} 46. Kd4 {[%clk 0:00:09.3]} 46... g5
{[%clk 0:00:05.2]} 47. Ke3 {[%clk 0:00:10.2]} 47... g4 {[%clk 0:00:05.7]} 48.
Ke2 {[%clk 0:00:10.9]} 48... g3 {[%clk 0:00:06.2]} 49. Ke3 {[%clk 0:00:11.8]}
49... g2 {[%clk 0:00:06.8]} 50. Kf2 {[%clk 0:00:12.7]} 50... Nf4 {[%clk
0:00:07.4]} 51. Kg1 {[%clk 0:00:13.6]} 51... Nh3+ {[%clk 0:00:08]} 52. Kh2
{[%clk 0:00:14.5]} 52... g1=Q+ {[%clk 0:00:08.5]} 53. Kxh3 {[%clk 0:00:15.4]}
53... Qg4+ {[%clk 0:00:09.2]} 54. Kh2 {[%clk 0:00:16]} 54... Qg2# {[%clk
0:00:10.1]} 0-1